Cogmind - Beta 14 @@@ ROGUE MODE // 2024.11.22 @ 22:17:30 Player: CoolCatCid Result: Self-destructed Performance ------------- Evolutions (1) 500 Regions Visited (2) 400 Robots Destroyed (22) 110 Value Destroyed (474) 474 Prototype IDs (0) 0 Alien Tech Used (0) 0 Bonus (0) 0 TOTAL SCORE: 1484 Bonus ------- None Cogmind --------- Core Integrity 259/400 Matter 300/300 Energy 100/100 System Corruption 0% Temperature Warm (128) Movement Core (200) Ox3 Location -9/Materials Parts ------- > --- POWER (1) -------- (None) > --- PROPULSION (3) --- (None) > --- UTILITY (3) ------ Small Storage Unit Sensor Array Signal Interpreter > --- WEAPON (2) ------- Particle Gun Light Assault Rifle > --- INVENTORY (8) ---- Ion Engine Aluminum Leg Small Laser Beam Cannon Grenade Launcher Datajack Mining Laser Heavy Hammer Peak State ------------ > --- POWER ------------ Improved Ion Engine > --- PROPULSION ------- Aluminum Leg Aluminum Leg Aluminum Leg > --- UTILITY ---------- Small Storage Unit Sensor Array Signal Interpreter > --- WEAPON ----------- Particle Gun Light Assault Rifle > --- INVENTORY -------- Ion Engine Ion Engine Aluminum Leg Small Laser Beam Cannon Grenade Launcher Datajack [Rating: 11] Favorites ----------- Power Ion Engine Engine Ion Engine Propulsion Aluminum Leg Leg Aluminum Leg Utility Small Storage Unit Device Sensor Array Storage Small Storage Unit Processor Signal Interpreter Weapon Light Assault Rifle Energy Gun Particle Gun Energy Cannon Beam Cannon Ballistic Gun Light Assault Rifle Build | -11 -10 -9 ------- Run | Yrd Mat Mat Slots Evolved 2 | . . 2 Power . | . . . Propulsion 1 | . . 1 Utility 1 | . . 1 Weapon . | . . . Parts Attached 16 | 6 4 6 Power 3 | 1 . 2 Engine 3 | 1 . 2 Core . | . . . Reactor . | . . . Propulsion 5 | 2 1 2 Treads . | . . . Leg 5 | 2 1 2 Wheel . | . . . Hover . | . . . Flight . | . . . Utility 3 | 1 1 1 Device 1 | . . 1 Storage 1 | 1 . . Processor 1 | . 1 . Hackware . | . . . Protection . | . . . Artifact . | . . . Weapon 5 | 2 2 1 Energy Gun 2 | 1 . 1 Energy Cannon 1 | . 1 . Ballistic Gun 2 | 1 1 . Ballistic Cannon . | . . . Launcher . | . . . Special Weapon . | . . . Impact Weapon . | . . . Slashing Weapon . | . . . Piercing Weapon . | . . . Special Melee Weapon . | . . . Unidentified Prototypes . | . . . Parts Lost 5 | . 1 4 Power 1 | . . 1 Propulsion 3 | . . 3 Utility . | . . . Weapon 1 | . 1 . Highest Loss Streak 4 | . 1 4 To Critical Strikes . | . . . Average Slot Usage (%) 97 | . 98 97 Engine 12 | . 14 10 Leg 28 | . 28 30 Device 4 | . . 11 Storage 12 | . 14 11 Processor 11 | . 12 11 Energy Gun 7 | . 5 10 Energy Cannon 5 | . 7 . Ballistic Gun 13 | . 14 11 Peak Build Rating 11 | 6 7 11 Average Rating 7 | 4 6 9 On Entrance 4 | . 6 7 Naked Turns . | . . . Heaviest Build 17 | 14 14 17 Greatest Support 30 | 20 20 30 Greatest Overweight (x) 4 | 4 . 3 Average Overweight (x) . | . . . Largest Inventory Capacity 8 | 8 8 8 Average Capacity 7 | 7 8 8 Most Carried 8 | 6 8 8 Average Carried 6 | 2 7 6 Final Capacity 8 | 8 8 8 Final Carried 8 | 6 8 8 Class Distribution -------------------- 100% | Mutant Dominant Class ---------------- Mutant | -10/Materials Mutant | -9/Materials Resources | -11 -10 -9 ----------- Run | Yrd Mat Mat Matter Collected 463 | 243 132 88 Remotely . | . . . Salvage Created 620 | . 342 278 Parts 43 | . 30 13 Haulers Intercepted . | . . . Recyclers Shooed . | . . . Parts Field Recycled . | . . . Retrieved Matter . | . . . Parts Self-Destructed . | . . . Prevented . | . . . Kills | -11 -10 -9 ------- Run | Yrd Mat Mat Combat Hostiles Destroyed 18 | . 10 8 Guns 12 | . 4 8 Cannons 2 | . 2 . AOE 4 | . 4 . Classes Destroyed 5 | . 4 1 Recycler 1 | . 1 . Watcher 3 | . 2 1 Swarmer 9 | . 6 3 Grunt 8 | . 4 4 Sentry 1 | . . 1 Best Kill Streak 6 | . 6 4 Combat Bots Only 6 | . 6 3 Max Kills in Single Turn 3 | . 3 2 Gunslinging 1 | . . 1 Exploded 3 | . 3 . Melee . | . . . Uniques/NPCs Destroyed . | . . . Combat | -11 -10 -9 -------- Run | Yrd Mat Mat Hostile Shots Fired 140 | . 37 103 Missed 47 | . 12 35 Damage Taken 974 | . 284 690 Core 180 | . 39 141 Absorbed by Shields . | . . . Core Remaining (%) 92 | 100 84 . Volleys Fired 56 | . 27 29 Largest 2 | . 2 2 Hottest 85 | . 80 85 Shots Fired 112 | . 54 58 Gun 108 | . 50 58 Cannon 4 | . 4 . Launcher . | . . . Special . | . . . Kinetic 63 | . 34 29 Thermal 33 | . 4 29 Explosive . | . . . Electromagnetic 16 | . 16 . Robot Hit Streak 13 | . 7 13 Robot Miss Streak 9 | . 4 9 Penetration Max . | . . . Secondary Targets 5 | . 2 3 Max Gunslinging Chain 1 | . 1 1 Shots Hit Robots 72 | . 36 36 Core Hits 31 | . 15 16 Critical Kills . | . . . Critical Parts Destroyed 1 | . . 1 Critical Strikes 2 | . . 2 Burn 1 | . . 1 Destroy 1 | . . 1 Melee Attacks . | . . . Impact . | . . . Slashing . | . . . Piercing . | . . . Sneak Attacks . | . . . Combat Hostiles . | . . . Follow-up Attacks . | . . . Damage Inflicted 1137 | . 680 457 Guns 845 | . 388 457 Cannons 70 | . 70 . Explosions 222 | . 222 . Melee . | . . . Ramming . | . . . Kinetic 440 | . 281 159 Thermal 590 | . 292 298 Explosive . | . . . Electromagnetic 107 | . 107 . Impact . | . . . Slashing . | . . . Piercing . | . . . Highest Corruption . | . . . Average Corruption . | . . . Corruption Purged . | . . . Corruption Blocked . | . . . Overload Shots . | . . . Overflow Damage 43 | . 43 . Projectiles . | . . . Explosions 43 | . 43 . Melee . | . . . Knockbacks . | . . . Impact . | . . . Kinetic . | . . . Secondary . | . . . Self-Inflicted Damage 35 | . 35 . Shots 1 | . 1 . Rammed . | . . . Targets Rammed . | . . . Kicked . | . . . Crushed . | . . . Highest Temperature 264 | . 60 264 Average Temperature 84 | . 18 127 Received Heat Transfer 321 | . 84 237 Effects 1 | . . 1 Energy Bleed 1 | . . 1 Siege Activations . | . . . Robots Corrupted . | . . . Combat Hostiles . | . . . Parts Fried . | . . . Impact Corruptions . | . . . Robots Melted . | . . . Combat Hostiles . | . . . Parts Melted 2 | . . 2 Heat Transferred 1225 | . 448 777 Parts Sabotaged . | . . . Parts Stolen . | . . . Parts Stripped . | . . . Power Chain Reactions 2 | . 2 . Alert | -11 -10 -9 ------- Run | Yrd Mat Mat Peak Influence 304 | . 258 304 Initial 33 | . . 33 Average 115 | . 123 132 Maximum Alert Level 1 | . 1 1 Low Security (%) 77 | 100 68 85 Level 1 22 | . 31 14 Level 2 . | . . . Level 3 . | . . . Level 4 . | . . . Level 5 . | . . . High Security . | . . . Max Security . | . . . Squads Dispatched 1 | . . 1 Investigation . | . . . Extermination . | . . . Reinforcement 1 | . . 1 Assault . | . . . Garrison . | . . . Intercept . | . . . Searches Triggered . | . . . Construction Impeded . | . . . Haulers Reinforced . | . . . Active Scanning Responses . | . . . Cargo Convoy Interrupts . | . . . Stealth | -11 -10 -9 --------- Run | Yrd Mat Mat Distress Signals 3 | . 1 2 Communications Jammed . | . . . Distress Signals . | . . . Times Spotted 32 | . 14 18 Peak Tracking Total 9 | . 7 9 Tactical Retreats 2 | . . 2 Traps | -11 -10 -9 ------- Run | Yrd Mat Mat Traps Triggered . | . . . Indirectly . | . . . Trap Hack Attempts . | . . . Triggered . | . . . Disarmed . | . . . Reprogrammed . | . . . Reused . | . . . Traps Extracted . | . . . Installed . | . . . Triggered . | . . . Machines | -11 -10 -9 ---------- Run | Yrd Mat Mat Machines Disabled . | . . . Max in Single Turn . | . . . Machines Repaired . | . . . Machines Dismantled . | . . . Machines Sabotaged . | . . . Overloaded Fab Kills . | . . . Hacking | -11 -10 -9 --------- Run | Yrd Mat Mat Machines Accessed 4 | . 3 1 Terminals 3 | . 3 . Fabricators . | . . . Repair Stations . | . . . Recycling Units 1 | . . 1 Scanalyzers . | . . . Garrison Access . | . . . Total Hacks 7 | . 4 3 Successful 5 | . 2 3 Failed 2 | . 2 . Catastrophic 1 | . 1 . Database Lockouts . | . . . Manual 2 | . 2 . Terminals 4 | . 4 . Fabricators . | . . . Repair Stations . | . . . Recycling Units 3 | . . 3 Scanalyzers . | . . . Garrison Access . | . . . Terminal Hacks 2 | . 2 . Zone Layout 2 | . 2 . Fabricator Hacks . | . . . Repair Station Hacks . | . . . Recycling Unit Hacks 3 | . . 3 Recycle Component 1 | . . 1 Process 1 | . . 1 Retrieve Components 1 | . . 1 Scanalyzer . | . . . Garrison Access Hacks . | . . . Unauthorized Hacks . | . . . Terminals . | . . . Fabricators . | . . . Repair Stations . | . . . Recycling Units . | . . . Scanalyzers . | . . . Garrison Access . | . . . Data Cores Recovered . | . . . Used . | . . . Hacking Detections 2 | . 1 1 Full Trace Events . | . . . Feedback Events . | . . . Feedback Blocked . | . . . Robot Schematics Acquired . | . . . Robots Built . | . . . Authchips . | . . . Time . | . . . Total Robot Build Rating . | . . . Part Schematics Acquired . | . . . Parts Built . | . . . Authchips . | . . . Time . | . . . Total Part Build Rating . | . . . Parts Repaired . | . . . Time . | . . . Parts Recycled 1 | . . 1 Recycled Matter 13 | . . 13 Retrieved Matter . | . . . Retrieved Components . | . . . Parts Scanalyzed . | . . . Part Schematics Acquired . | . . . Parts Damaged . | . . . Bothacking | -11 -10 -9 ------------ Run | Yrd Mat Mat Used RIF Installer . | . . . Robots Hacked . | . . . Non-combat . | . . . Combat . | . . . Robot Hacks Applied . | . . . Relay Couplers Released . | . . . Fabnet Peak Effective % . | . . . Robots Rewired . | . . . Allies Hacked . | . . . Hacks Repelled . | . . . Allies | -11 -10 -9 -------- Run | Yrd Mat Mat Total Allies . | . . . Largest Group . | . . . Highest-Rated Group . | . . . Highest-Rated Ally . | . . . Total Orders . | . . . Ally Attacks . | . . . Total Damage . | . . . Kills . | . . . Allies Corrupted . | . . . Allies Melted . | . . . Intel | -11 -10 -9 ------- Run | Yrd Mat Mat Robot Analysis Total . | . . . Derelict Logs Recovered . | . . . Drone Launches . | . . . Drone Recoveries . | . . . Exploration | -11 -10 -9 ------------- Run | Yrd Mat Mat Turns Passed 987 | 87 544 356 Spaces Moved 523 | 55 301 167 Core 14 | 12 . 2 Treads . | . . . Legs 509 | 43 301 165 Wheels . | . . . Hover . | . . . Flight . | . . . Fastest Speed 50 | 50 120 120 Average Speed 121 | 131 120 120 Slowest Speed 250 | 250 120 200 Overloaded Moves . | . . . Propulsion Burnouts . | . . . Robots Hopped . | . . . Cave-ins Triggered . | . . . Exploration Rate (%) 19 | 5 42 12 Regions Visited 2 Branch Regions . Pre-discovered Areas . | . . . Known Exits Taken 1 | . 1 . Unknown Exits Taken 1 | 1 . . Scrap Searched . | . . . Spaces Dug . | . . . Terrain Destroyed 6 | . 6 . Melee . | . . . Projectile . | . . . AOE 6 | . 6 . Terrain Rammed . | . . . Walls Destroyed . | . . . Machines Disabled . | . . . Actions | -11 -10 -9 --------- Run | Yrd Mat Mat Total 767 | 66 434 267 Wait 144 | . 84 60 Move 521 | 54 300 167 Hop . | . . . Pick Up 21 | 6 11 4 Fast Attach 7 | 6 1 . Attach 3 | . 1 2 Detach . | . . . Swap 6 | . 2 4 Drop 9 | . 8 1 Fire 56 | . 27 29 Melee . | . . . Ram . | . . . Kick . | . . . Crush . | . . . Escape Stasis . | . . . Rewire . | . . . Trap . | . . . Miscellaneous . | . . . Route ------- -11/Scrapyard -10/Materials -9/Materials History --------- Turn | Location | Event 21 | -11/Scrapyard | Discovered new exit (range 16) 88 | -11/Scrapyard | Entered Materials 328 | -10/Materials | Build established: Mutant 572 | -10/Materials | Discovered new exit (range 15) 631 | -10/Materials | Identified exit to Materials 632 | -10/Materials | Entered another Materials area 632 | -9/Materials | Evolved 2 slots: Propulsion x1, Utility x1 988 | -9/Materials | Self-destructed Last Messages --------------- 00962_ G-47 Trooper destroyed. 00963_ Acquired 1 matter. 00964_ Overheating: Energy bleed (-39). 00964_ S-10 Pest destroyed. 00964_ Switching to secondary target: S-10 Pest. 00965_ Acquired 1 matter. 00965_ K-01 Serf collects debris. 00966_ R-06 Scavenger collects Lgt. Assault Rifle. 00966_ Aluminum Leg destroyed. 00969_ K-01 Serf collects debris. 00969_ S-10 Pest destroyed. 00969_ Switching to secondary target: G-34 Mercenary. 00970_ Acquired 1 matter. 00972_ K-01 Serf collects debris. 00974_ Acquired 1 matter. 00975_ Imp. Ion Engine destroyed. 00975_ S-10 Pest destroyed. 00978_ Signal Interpreter melted. 00978_ W-16 Scout destroyed. 00986_ Acquired 3 matter. Map ----- +----------------------------------------------------+ | ??????????????????????????????????????????? | | ??????????????????????????????????????????? | | ??????????????????????????????????????????? | | ??????????????????????????????????????????? | | ??????????????????????????????????????????? | | ??????????????????????????????????????????? | | ??????????????????????????????????????????? | | ??????????????????????????????????????????? | | ??????????????????????????????????????????? | | ??????????????????????????????????????????? | | ????????????????? ??????????????????????? | | ????????????????? ??????????????????????? | | ????????????????? ??????????????????????? | | ??############### #?????????????????????? | | ??# ?# #?????????????????????? | | ??# ?# #?????????????????????? | | ??# """"" """""?# %#?????????????????????? | | ??# """"" """"" # ?????????????????????? | | ??# """"" """"" + #?????????????????????? | | ??# =% #s! #?????????????????????? | | ??###+########### %s##????????????????????? | | ????#=#????????# = #######+####?????????? | | ????# #????????# =%* g ?????????? | | ????# #????????# s% ??????????? | | ????# #????????# % a xx?????????????? | | ????# #????????# !@% #????????????????????? | | ????# #??????#####/#####??????????????????? | | ????#x######## *%[[ #??????????????????? | | ????# + = #??????????????????? | | ????# ##### * #??????????????????? | | ????# #???# #??????????????????? | | ????# #???#/| " """ #??????????????????? | | ????# #???#| """"" #??????????????????? | | ????# #???# """"" #??????????????????? | | ????# x#???# #??????????????????? | | #####+## #???#########X#??????????????????? | | # # #?????######?????????????????????? | | # # #?????# #?????????????????????? | | # """ # #?????# "" #?????????????????????? | | # """ # ####### "Y #?????????????????????? | | # """ + / "" #?????????????????????? | | # # #### #?????????????????????? | | ########+## #??######?????????????????????? | | ?# # #?????????????????????????????? | | ?# """ # #?????????????????????????????? | | ?# """ # ###???????????????????????????? | | ?# """ # #???????????????????????????? | | ?# + #???????????????????????????? | | ?# """ # #???????????????????????????? | | ?# """ # +???????????????????????????? | +----------------------------------------------------+ Best States ------------- Heat Dissipation 28 Energy Generation 12 Energy Capacity 265 Matter Stores 300 Matter Capacity 300 Sight Range 16 Robot Scan Range 14 Terrain Scan Density 10 Evasion (%) 55 Item Schematics ----------------- None Robot Schematics ------------------ None Fabricated ------------ Nothing Alien Tech Used ----------------- None Achievements -------------- None Challenges ------------ None Game ------ Seed GrapheneCentriumConstruct Manual? 0 Play Time 00:14:31 Cumulative 13.0 hours Start 2024.11.22 @ 22:04:43 End 2024.11.22 @ 22:17:30 Sessions 1 Manual Loads 0 Difficulty Rogue Special Mode None Game No. 15 Rogue 15 Adventurer 0 Explorer 0 Win Type - Total 0 Types 0/0/0/0/0/0/0/0/0 Lore% 11 Gallery% 16 Achievement% 14 Wizard Run 0 Options --------- Layout 1 ASCII 0 Keyboard 0 Movement Arrows Keybinds 0 Fullscreen 1 Font 24/Smallcaps Map View 76x35 Zoom Use 0% Tactical HUD 1 Map Filters NONE Filters NONE Steam 1 RUN: a9a606a3-53af-491f-96e9-1fe9cb495962